fUSD/lending_fUSD_20250606
["ID","MTS","AMOUNT","RATE_DAILY","PERIOD"]
[364682640,1749198603346,4451.49582427,0.00035616,120]
[364682641,1749198603385,2147.67,0.00035616,120]
[364682642,1749198603431,424.94188789,0.00035616,120]
[364682643,1749198603471,1045.0,0.00035616,120]
[364682644,1749198604120,160.47,0.00013699,2]
[364682648,1749198632393,-1200.0,0.00019999,2]
[364682649,1749198632403,-300.0,0.0002,2]
[364682650,1749198632412,-300.0,0.0002,2]
[364682651,1749198632422,-4176.65270323,0.0002,2]
[364682652,1749198632481,-2601.58201,0.0002,2]
[364682688,1749198638250,-1632.98765464,0.0002,2]
[364682689,1749198638423,-1036.01785492,0.0002,2]
[364682690,1749198638516,-2353.37527564,0.0002,2]
[364682691,1749198638528,-419.229999,0.0002,2]
[364682707,1749198640766,-30020.34120548,0.0002,2]
[364682708,1749198640776,-231.21021339,0.0002,2]
[364682709,1749198640786,-1680.0,0.00021881,2]
[364682710,1749198640796,-300.0,0.00021953,2]
[364682711,1749198640805,-300.0,0.00021999,2]
[364682712,1749198640815,-300.0,0.00021999,2]
[364682713,1749198640824,-720.0,0.00023941,2]
[364682714,1749198640834,-7699.52938193,0.0002399,2]
[364682715,1749198640843,-5000.00314539,0.00024,5]
[364682716,1749198640853,-694.62263495,0.000247,11]
[364682717,1749198640863,-694.62263468,0.000247,11]
[364682718,1749198640872,-694.62263468,0.000247,11]
[364682719,1749198640881,-694.62263468,0.000247,11]
[364682720,1749198640891,-694.62263468,0.000247,11]
[364682721,1749198640900,-162.0,0.00025,7]
[364682722,1749198640910,-694.62263468,0.00025003,12]
[364682723,1749198640919,-3674.69,0.0002556,2]
[364682724,1749198640929,-694.62263468,0.00025624,13]
[364682726,1749198640939,-250.0,0.0002578,2]
[364682728,1749198640948,-500.0,0.0002578,2]
[364682729,1749198640958,-500.0,0.0002578,2]
[364682730,1749198640967,-500.0,0.0002578,2]
[364682731,1749198640977,-500.0,0.0002578,2]
[364682732,1749198640986,-500.0,0.0002578,2]
[364682734,1749198640997,-500.0,0.0002578,2]
[364682736,1749198641006,-500.0,0.0002578,2]
[364682737,1749198641015,-500.0,0.0002578,2]
[364682738,1749198641025,-500.0,0.0002578,2]
[364682739,1749198641034,-500.0,0.0002578,2]
[364682740,1749198641044,-500.0,0.0002578,2]
[364682741,1749198641053,-500.0,0.0002578,2]
[364682742,1749198641065,-500.0,0.0002578,2]
[364682743,1749198641075,-500.0,0.0002578,2]
[364682744,1749198641084,-500.0,0.0002578,2]
[364682745,1749198641093,-500.0,0.0002578,2]
[364682746,1749198641103,-503.45314331,0.0002578,2]
[364682747,1749198641114,-500.0,0.0002578,2]
[364682748,1749198641124,-151445.378876,0.00025781,7]
[364682749,1749198641133,-178.2107954,0.00025781,7]
[364682750,1749198641144,-1368.0,0.000259,2]
[364682751,1749198641153,-172.58,0.00025903,2]
[364682752,1749198641163,-930.0,0.00026027,2]
[364682753,1749198641173,-1085.0,0.00026154,2]
[364682754,1749198641183,-694.62263468,0.00026245,14]
[364682755,1749198641192,-1785.0,0.00026281,2]
[364682756,1749198641202,-643.0,0.00026408,2]
[364682757,1749198641211,-750.0,0.000265,2]
[364682758,1749198641222,-1782.0,0.00026535,2]
[364682759,1749198641231,-458.36,0.00026535,2]
[364682760,1749198641242,-1212.0,0.00026602,2]
[364682761,1749198641251,-1686.0,0.00026662,2]
[364682762,1749198641261,-591.0,0.00026732,2]
[364682763,1749198641271,-1341.0,0.00026789,2]
[364682764,1749198641280,-186.0,0.00026862,2]
[364682765,1749198641622,-694.62263468,0.00026866,16]
[364682766,1749198641632,-725.0,0.00026916,2]
[364682767,1749198641642,-1883.0,0.00027042,2]
[364682768,1749198641652,-711.0,0.00027169,2]
[364682769,1749198641661,-2968.81357533,0.00027249,2]
[364682770,1749198641671,-518.13627748,0.00027397,2]
[364682771,1749198641680,-500.0,0.00027397,2]
[364682772,1749198641690,-500.0,0.00027397,2]
[364682773,1749198641700,-500.0,0.00027397,2]
[364682774,1749198641709,-500.0,0.00027397,2]
[364682775,1749198641718,-500.0,0.00027397,2]
[364682776,1749198641731,-500.0,0.00027397,2]
[364682777,1749198641740,-500.0,0.00027397,2]
[364682778,1749198641750,-500.0,0.00027397,2]
[364682779,1749198641760,-500.0,0.00027397,2]
[364682780,1749198641770,-500.0,0.00027397,2]
[364682781,1749198641779,-500.0,0.00027397,2]
[364682782,1749198641790,-500.0,0.00027397,2]
[364682783,1749198641799,-500.0,0.00027397,2]
[364682784,1749198641809,-500.0,0.00027397,2]
[364682785,1749198641819,-500.0,0.00027397,2]
[364682786,1749198641829,-500.0,0.00027397,2]
[364682787,1749198641840,-500.0,0.00027397,2]
[364682788,1749198641851,-516.14778384,0.00027397,2]
[364682789,1749198641861,-500.0,0.00027397,2]
[364682790,1749198641871,-500.0,0.00027397,2]
[364682791,1749198641881,-500.0,0.00027397,2]
[364682792,1749198641890,-500.0,0.00027397,2]
[364682793,1749198641902,-500.0,0.00027397,2]
[364682794,1749198641912,-500.0,0.00027397,2]
[364682795,1749198641923,-500.0,0.00027397,2]
[364682796,1749198641933,-500.0,0.00027397,2]
[364682797,1749198641948,-500.0,0.00027397,2]
[364682798,1749198641963,-500.0,0.00027397,2]
[364682799,1749198641973,-500.0,0.00027397,2]
[364682800,1749198641982,-500.0,0.00027397,2]
[364682801,1749198641991,-500.0,0.00027397,2]
[364682802,1749198642000,-500.0,0.00027397,2]
[364682803,1749198642010,-500.0,0.00027397,2]
[364682804,1749198642019,-694.62263468,0.00027486,17]
[364682805,1749198642030,-206.0,0.00027539,2]
[364682806,1749198642039,-200.86757239,0.000278,2]
[364682807,1749198642048,-694.62263468,0.00028107,18]
[364682808,1749198642058,-200.86757235,0.00028129,2]
[364682809,1749198642073,-200.0,0.00028202,2]
[364682810,1749198642092,-208.31,0.00028229,2]
[364682811,1749198642102,-150.0,0.00028322,7]
[364682812,1749198642112,-1000.0,0.00028397,2]
[364682813,1749198642122,-369.03,0.00028445,30]
[364682814,1749198642131,-200.86757235,0.00028457,2]
[364682815,1749198642142,-7017.0,0.00028675,2]
[364682816,1749198642151,-155.0,0.00028675,2]
[364682817,1749198642160,-944.0,0.00028675,2]
[364682818,1749198642169,-4081.0,0.00028675,2]
[364682819,1749198642178,-155.017,0.00028675,2]
[364682820,1749198642187,-694.62263468,0.00028728,19]
[364682821,1749198642197,-200.86757235,0.00028786,2]
[364682822,1749198642206,-458.36,0.00028799,2]
[364682823,1749198642216,-200.86757235,0.00029115,2]
[364682824,1749198642225,-165.1,0.000292,2]
[364682825,1749198642234,-1000.0,0.00029348,2]
[364682826,1749198642244,-694.62263468,0.00029348,20]
[364682827,1749198642253,-157.38,0.0002942,2]
[364682828,1749198642263,-200.86757235,0.00029443,2]
[364682829,1749198642272,-752.9870604,0.000297,2]
[364682830,1749198642283,-200.86757235,0.00029772,2]
[364682831,1749198642293,-1000.0,0.000298,7]
[364682832,1749198642303,-1000.0,0.000299,7]
[364682833,1749198642312,-694.62263468,0.00029969,22]
[364682834,1749198642322,-4155.15301425,0.0003,2]
[364682835,1749198642332,-267.318324,0.00030056,12]
[364682836,1749198642341,-160.09646766,0.00030064,2]
[364682837,1749198642352,-200.0,0.000301,2]
[364682838,1749198642362,-200.86757235,0.00030101,2]
[364682839,1749198642371,-173.56,0.00030143,2]
[364682840,1749198642382,-115953.228276,0.00030144,2]
[364682841,1749198642391,-16564.7468966,0.00030151,2]
[364682842,1749198642401,-2000.0,0.00030153,2]
[364682843,1749198642410,-2000.0,0.00030153,2]
[364682844,1749198642420,-248471.203448,0.00030154,2]
[364682845,1749198642430,-13480.24545574,0.00030161,2]
[364682846,1749198642440,-157.600011,0.00030164,7]
[364682847,1749198642449,-907.782064,0.00030164,7]
[364682848,1749198642459,-907.782064,0.00030164,7]
[364682849,1749198642468,-907.782064,0.00030164,7]
[364682850,1749198642477,-907.782064,0.00030164,7]
[364682851,1749198642487,-151.0,0.00030164,7]
[364682852,1749198642497,-151.0,0.00030164,7]
[364682853,1749198642506,-151.0,0.00030164,7]
[364682854,1749198642516,-151.0,0.00030164,7]
[364682855,1749198642526,-151.0,0.00030164,7]
[364682856,1749198642536,-151.0,0.00030164,7]
[364682857,1749198642545,-151.0,0.00030164,7]
[364682858,1749198642557,-151.0,0.00030164,7]
[364682859,1749198642567,-151.0,0.00030164,7]
[364682860,1749198642577,-151.0,0.00030164,7]
[364682861,1749198642587,-151.0,0.00030164,7]
[364682862,1749198642597,-151.0,0.00030164,7]
[364682863,1749198642607,-151.0,0.00030164,7]
[364682864,1749198642616,-151.0,0.00030164,7]
[364682865,1749198642625,-248.41548222,0.00030164,7]
[364682866,1749198642635,-159.621432,0.00030164,7]
[364682867,1749198642645,-159.621432,0.00030164,7]
[364682868,1749198642654,-480.0,0.00030164,7]
[364682869,1749198642665,-159.621432,0.00030164,7]
[364682870,1749198642674,-159.621432,0.00030164,7]
[364682871,1749198642684,-480.0,0.00030164,7]
[364682872,1749198642694,-435.02125896,0.00030164,7]
[364682873,1749198642705,-594.11890708,0.00030164,7]
[364682874,1749198642714,-480.0,0.00030164,7]
[364682875,1749198642724,-481.850051,0.00030164,7]
[364682876,1749198642733,-424.8448695,0.00030164,7]
[364682877,1749198642743,-504.14501086,0.00030164,7]
[364682878,1749198642753,-480.0,0.00030164,7]
[364682879,1749198642762,-480.0,0.00030164,7]
[364682880,1749198642771,-153.846551,0.00030164,7]
[364682881,1749198642780,-480.0,0.00030164,7]
[364682882,1749198642789,-480.0,0.00030164,7]
[364682883,1749198642799,-481.30586123,0.00030164,7]
[364682884,1749198642808,-480.0,0.00030164,7]
[364682885,1749198642817,-480.33540273,0.00030164,7]
[364682886,1749198642827,-312.91984795,0.00030164,7]
[364682887,1749198642836,-1810.273144,0.00030164,7]
[364682888,1749198642845,-1591.347277,0.00030164,7]
[364682889,1749198642855,-162.836284,0.00030164,7]
[364682890,1749198642864,-480.0,0.00030164,7]
[364682891,1749198642874,-480.0,0.00030164,7]
[364682892,1749198642883,-480.0,0.00030164,7]
[364682893,1749198642893,-480.0,0.00030164,7]
[364682894,1749198642902,-492.952179,0.00030164,7]
[364682895,1749198642912,-480.0,0.00030164,7]
[364682896,1749198642922,-491.67730773,0.00030164,7]
[364682897,1749198642932,-498.72968721,0.00030164,7]
[364682898,1749198642941,-637.53,0.00030164,7]
[364682899,1749198642951,-480.0,0.00030164,7]
[364682900,1749198642960,-480.0,0.00030164,7]
[364682901,1749198642969,-480.0,0.00030164,7]
[364682902,1749198642979,-480.0,0.00030164,7]
[364682903,1749198642989,-480.0,0.00030164,7]
[364682904,1749198642998,-480.0,0.00030164,7]
[364682905,1749198643008,-480.0,0.00030164,7]
[364682906,1749198643018,-480.0,0.00030164,7]
[364682907,1749198643028,-484.38374052,0.00030164,7]
[364682908,1749198643039,-480.0,0.00030164,7]
[364682909,1749198643049,-480.0,0.00030164,7]
[364682910,1749198643061,-421.56590944,0.00030164,7]
[364682911,1749198643072,-480.0,0.00030164,7]
[364682912,1749198643083,-480.0,0.00030164,7]
[364682913,1749198643093,-480.0,0.00030164,7]
[364682914,1749198643103,-480.0,0.00030164,7]
[364682915,1749198643112,-480.0,0.00030164,7]
[364682916,1749198643121,-485.82998483,0.00030164,7]
[364682917,1749198643131,-480.0,0.00030164,7]
[364682918,1749198643141,-480.0,0.00030164,7]
[364682920,1749198643151,-493.96602764,0.00030164,7]
[364682921,1749198643160,-480.0,0.00030164,7]
[364682922,1749198643170,-492.31792865,0.00030164,7]
[364682924,1749198643179,-480.0,0.00030164,7]
[364682926,1749198643188,-482.75906997,0.00030164,7]
[364682928,1749198643198,-480.0,0.00030164,7]
[364682930,1749198643207,-480.0,0.00030164,7]
[364682932,1749198643217,-392.91678659,0.00030164,7]
[364682934,1749198643227,-496.7189745,0.00030164,7]
[364682937,1749198643236,-277.50472787,0.00030164,7]
[364682940,1749198643246,-480.0,0.00030164,7]
[364682942,1749198643255,-432.46830183,0.00030164,7]
[364682944,1749198643264,-423.27622111,0.00030164,7]
[364682945,1749198643274,-480.0,0.00030164,7]
[364682946,1749198643285,-480.0,0.00030164,7]
[364682947,1749198643294,-480.0,0.00030164,7]
[364682948,1749198643304,-480.0,0.00030164,7]
[364682950,1749198643314,-480.0,0.00030164,7]
[364682951,1749198643323,-465.65734134,0.00030164,7]
[364682952,1749198643333,-480.0,0.00030164,7]
[364682953,1749198643342,-495.38243071,0.00030164,7]
[364682954,1749198643351,-443.68248787,0.00030164,7]
[364682955,1749198643361,-466.11797011,0.00030164,7]
[364682956,1749198643371,-488.22,0.00030164,7]
[364682957,1749198643380,-824.67,0.00030164,7]
[364682958,1749198643390,-438.44740247,0.00030164,7]
[364682959,1749198643400,-480.0,0.00030164,7]
[364682960,1749198643410,-480.0,0.00030164,7]
[364682961,1749198643419,-480.0,0.00030164,7]
[364682962,1749198643428,-480.0,0.00030164,7]
[364682963,1749198643438,-427.05153983,0.00030164,7]
[364682964,1749198643448,-174.35824643,0.00030164,7]
[364682965,1749198643457,-484.88436648,0.00030164,7]
[364682966,1749198643467,-480.0,0.00030164,7]
[364682967,1749198643477,-480.0,0.00030164,7]
[364682968,1749198643487,-493.19373307,0.00030164,7]
[364682969,1749198643499,-328.48174264,0.00030164,7]
[364682970,1749198643509,-480.0,0.00030164,7]
[364682971,1749198643519,-480.0,0.00030164,7]
[364682972,1749198643528,-480.0,0.00030164,7]
[364682973,1749198643537,-480.0,0.00030164,7]
[364682974,1749198643547,-500.09842453,0.00030164,7]
[364682975,1749198643557,-480.0,0.00030164,7]
[364682976,1749198643566,-480.0,0.00030164,7]
[364682977,1749198643576,-480.0,0.00030164,7]
[364682978,1749198643586,-480.0,0.00030164,7]
[364682979,1749198643595,-480.0,0.00030164,7]
[364682980,1749198643604,-480.0,0.00030164,7]
[364682981,1749198643614,-480.0,0.00030164,7]
[364682982,1749198643623,-480.0,0.00030164,7]
[364682983,1749198643633,-467.38889236,0.00030164,7]
[364682984,1749198643642,-480.0,0.00030164,7]
[364682985,1749198643651,-480.0,0.00030164,7]
[364682986,1749198643661,-439.50307822,0.00030164,7]
[364682987,1749198643671,-482.71448909,0.00030164,7]
[364682988,1749198643680,-480.0,0.00030164,7]
[364682989,1749198643691,-480.0,0.00030164,7]
[364682990,1749198643700,-480.0,0.00030164,7]
[364682991,1749198643710,-480.0,0.00030164,7]
[364682993,1749198643719,-499.12857982,0.00030164,7]
[364682995,1749198643728,-480.0,0.00030164,7]
[364682997,1749198643738,-490.68551406,0.00030164,7]
[364682998,1749198643749,-491.51013629,0.00030164,7]
[364682999,1749198643758,-480.0,0.00030164,7]
[364683000,1749198643767,-486.75731355,0.00030164,7]
[364683002,1749198643776,-480.0,0.00030164,7]
[364683003,1749198643786,-492.47177423,0.00030164,7]
[364683004,1749198643795,-485.57084507,0.00030164,7]
[364683005,1749198643805,-485.15260186,0.00030164,7]
[364683006,1749198643817,-485.88938331,0.00030164,7]
[364683009,1749198643826,-480.0,0.00030164,7]
[364683011,1749198643836,-480.0,0.00030164,7]
[364683013,1749198643845,-485.10186756,0.00030164,7]
[364683014,1749198643855,-484.27539449,0.00030164,7]
[364683015,1749198643864,-480.0,0.00030164,7]
[364683016,1749198643874,-486.94873946,0.00030164,7]
[364683017,1749198643883,-480.0,0.00030164,7]
[364683018,1749198643892,-480.0,0.00030164,7]
[364683019,1749198643902,-491.37578586,0.00030164,7]
[364683020,1749198643911,-491.92044498,0.00030164,7]
[364683021,1749198643921,-453.66251753,0.00030164,7]
[364683022,1749198643930,-480.0,0.00030164,7]
[364683023,1749198643939,-376.46533036,0.00030164,7]
[364683024,1749198643950,-480.0,0.00030164,7]
[364683025,1749198643959,-484.50598563,0.00030164,7]
[364683026,1749198643969,-339.40009498,0.00030164,7]
[364683027,1749198643978,-480.0,0.00030164,7]
[364683028,1749198643987,-501.21713607,0.00030164,7]
[364683029,1749198644063,-480.0,0.00030164,7]
[364683030,1749198644074,-170.34938031,0.00030164,7]
[364683031,1749198644084,-482.19885845,0.00030164,7]
[364683032,1749198644094,-488.21016514,0.00030164,7]
[364683033,1749198644104,-2000.0,0.00030164,30]
[364683034,1749198644113,-480.0,0.00030164,7]
[364683035,1749198644123,-488.49529513,0.00030164,7]
[364683036,1749198644133,-483.65982622,0.00030164,7]
[364683037,1749198644143,-480.0,0.00030164,7]
[364683038,1749198644153,-480.0,0.00030164,7]
[364683039,1749198644163,-480.0,0.00030164,7]
[364683040,1749198644173,-349.1518131,0.00030164,7]
[364683041,1749198644183,-480.0,0.00030164,7]
[364683042,1749198644193,-480.0,0.00030164,7]
[364683043,1749198644202,-480.0,0.00030164,7]
[364683044,1749198644211,-485.37750756,0.00030164,7]
[364683045,1749198644220,-480.0,0.00030164,7]
[364683046,1749198644230,-480.0,0.00030164,7]
[364683047,1749198644239,-355.56025355,0.00030164,7]
[364683048,1749198644251,-480.0,0.00030164,7]
[364683049,1749198644260,-480.0,0.00030164,7]
[364683050,1749198644269,-480.0,0.00030164,7]
[364683051,1749198644279,-514.85598408,0.00030164,7]
[364683052,1749198644288,-480.0,0.00030164,7]
[364683053,1749198644297,-497.91429533,0.00030164,7]
[364683054,1749198644307,-480.0,0.00030164,7]
[364683055,1749198644316,-221.5068644,0.00030164,7]
[364683056,1749198644326,-496.95405679,0.00030164,7]
[364683057,1749198644336,-161.160518,0.00030164,7]
[364683058,1749198644345,-302.18241063,0.00030164,7]
[364683059,1749198644355,-480.0,0.00030164,7]
[364683060,1749198644365,-486.17086105,0.00030164,7]
[364683061,1749198644375,-480.0,0.00030164,7]
[364683062,1749198644386,-480.0,0.00030164,7]
[364683063,1749198644396,-488.54,0.00030164,7]
[364683064,1749198644406,-480.0,0.00030164,7]
[364683065,1749198644416,-488.19165287,0.00030164,7]
[364683066,1749198644426,-480.0,0.00030164,7]
[364683067,1749198644437,-482.21640135,0.00030164,7]
[364683068,1749198644446,-480.0,0.00030164,7]
[364683069,1749198644457,-480.0,0.00030164,7]
[364683070,1749198644466,-486.05339023,0.00030164,7]
[364683071,1749198644476,-484.51187732,0.00030164,7]
[364683072,1749198644486,-480.0,0.00030164,7]
[364683073,1749198644497,-480.0,0.00030164,7]
[364683074,1749198644507,-480.0,0.00030164,7]
[364683075,1749198644517,-480.0,0.00030164,7]
[364683076,1749198644526,-483.18040379,0.00030164,7]
[364683077,1749198644535,-480.0,0.00030164,7]
[364683078,1749198644545,-480.0,0.00030164,7]
[364683079,1749198644555,-480.0,0.00030164,7]
[364683080,1749198644565,-480.0,0.00030164,7]
[364683081,1749198644574,-480.0,0.00030164,7]
[364683082,1749198644583,-497.07365701,0.00030164,7]
[364683083,1749198644593,-480.0,0.00030164,7]
[364683084,1749198644602,-341.80124131,0.00030164,7]
[364683085,1749198644612,-151.587757,0.00030164,7]
[364683086,1749198644621,-480.0,0.00030164,7]
[364683087,1749198644630,-480.0,0.00030164,7]
[364683088,1749198644639,-480.0,0.00030164,7]
[364683089,1749198644649,-422.24263036,0.00030164,7]
[364683090,1749198644659,-437.21622927,0.00030164,7]
[364683091,1749198644668,-498.67864343,0.00030164,7]
[364683092,1749198644679,-480.0,0.00030164,7]
[364683093,1749198644689,-480.0,0.00030164,7]
[364683094,1749198644699,-480.0,0.00030164,7]
[364683095,1749198644708,-480.0,0.00030164,7]
[364683096,1749198644717,-489.21303701,0.00030164,7]
[364683097,1749198644727,-480.0,0.00030164,7]
[364683098,1749198644737,-493.41407649,0.00030164,7]
[364683099,1749198644747,-480.0,0.00030164,7]
[364683100,1749198644757,-480.0,0.00030164,7]
[364683101,1749198644767,-480.0,0.00030164,7]
[364683102,1749198644776,-480.0,0.00030164,7]
[364683103,1749198644785,-480.0,0.00030164,7]
[364683104,1749198644795,-480.0,0.00030164,7]
[364683105,1749198644804,-483.35483192,0.00030164,7]
[364683106,1749198644814,-489.44083211,0.00030164,7]
[364683107,1749198644823,-489.87378188,0.00030164,7]
[364683108,1749198644832,-480.0,0.00030164,7]
[364683109,1749198644842,-491.90229553,0.00030164,7]
[364683110,1749198644851,-480.0,0.00030164,7]
[364683111,1749198644860,-481.92158103,0.00030164,7]
[364683112,1749198644869,-480.0,0.00030164,7]
[364683113,1749198644879,-484.6400219,0.00030164,7]
[364683114,1749198644888,-497.24578645,0.00030164,7]
[364683115,1749198644898,-480.0,0.00030164,7]
[364683116,1749198644907,-479.90748943,0.00030164,7]
[364683117,1749198644916,-480.0,0.00030164,7]
[364683118,1749198644925,-554.51,0.00030164,7]
[364683119,1749198644935,-480.0,0.00030164,7]
[364683120,1749198644944,-480.0,0.00030164,7]
[364683121,1749198644954,-480.0,0.00030164,7]
[364683122,1749198644963,-480.0,0.00030164,7]
[364683123,1749198644972,-486.47232307,0.00030164,7]
[364683124,1749198644982,-528.03379447,0.00030164,7]
[364683125,1749198644991,-480.0,0.00030164,7]
[364683126,1749198645001,-486.02065922,0.00030164,7]
[364683127,1749198645010,-480.0,0.00030164,7]
[364683128,1749198645020,-480.0,0.00030164,7]
[364683129,1749198645029,-480.0,0.00030164,7]
[364683130,1749198645039,-481.55726094,0.00030164,7]
[364683131,1749198645049,-162.876665,0.00030164,7]
[364683132,1749198645059,-502.36948059,0.00030164,7]
[364683133,1749198645072,-480.0,0.00030164,7]
[364683134,1749198645081,-383.41112128,0.00030164,7]
[364683135,1749198645090,-480.0,0.00030164,7]
[364683136,1749198645100,-480.0,0.00030164,7]
[364683137,1749198645110,-501.22796512,0.00030164,7]
[364683138,1749198645119,-480.0,0.00030164,7]
[364683139,1749198645129,-480.0,0.00030164,7]
[364683140,1749198645138,-480.0,0.00030164,7]
[364683141,1749198645148,-480.0,0.00030164,7]
[364683142,1749198645158,-489.29238845,0.00030164,7]
[364683143,1749198645167,-480.0,0.00030164,7]
[364683144,1749198645177,-338.86547354,0.00030164,7]
[364683145,1749198645186,-480.0,0.00030164,7]
[364683146,1749198645195,-480.0,0.00030164,7]
[364683147,1749198645204,-480.0,0.00030164,7]
[364683148,1749198645214,-491.46711055,0.00030164,7]
[364683149,1749198645223,-480.0,0.00030164,7]
[364683150,1749198645232,-500.0,0.00030164,2]
[364683151,1749198645241,-500.0,0.00030164,2]
[364683152,1749198645251,-483.11270371,0.00030164,7]
[364683153,1749198645260,-500.0,0.00030164,7]
[364683154,1749198645269,-500.0,0.00030164,7]
[364683155,1749198645279,-480.0,0.00030164,7]
[364683156,1749198645288,-482.08396667,0.00030164,7]
[364683157,1749198645297,-480.0,0.00030164,7]
[364683158,1749198645306,-480.0,0.00030164,7]
[364683159,1749198645315,-482.4439344,0.00030164,7]
[364683160,1749198645324,-164.593247,0.00030164,7]
[364683161,1749198645333,-480.0,0.00030164,7]
[364683162,1749198645342,-490.70700859,0.00030164,7]
[364683163,1749198645351,-480.0,0.00030164,7]
[364683164,1749198645360,-1000.0,0.00030164,7]
[364683165,1749198645369,-481.2423928,0.00030164,7]
[364683166,1749198645378,-480.0,0.00030164,7]
[364683167,1749198645387,-480.0,0.00030164,7]
[364683168,1749198645396,-487.19512927,0.00030164,7]
[364683169,1749198645406,-480.0,0.00030164,7]
[364683170,1749198645416,-480.0,0.00030164,7]
[364683171,1749198645426,-480.0,0.00030164,7]
[364683172,1749198645435,-480.0,0.00030164,7]
[364683173,1749198645445,-484.01917455,0.00030164,7]
[364683174,1749198645455,-480.0,0.00030164,7]
[364683175,1749198645466,-485.80005832,0.00030164,7]
[364683176,1749198645475,-480.0,0.00030164,7]
[364683177,1749198645485,-486.25828105,0.00030164,7]
[364683178,1749198645495,-480.0,0.00030164,7]
[364683179,1749198645505,-480.0,0.00030164,7]
[364683180,1749198645516,-480.0,0.00030164,7]
[364683181,1749198645525,-484.33830044,0.00030164,7]
[364683182,1749198645535,-480.0,0.00030164,7]
[364683183,1749198645544,-480.0,0.00030164,7]
[364683184,1749198645554,-480.0,0.00030164,7]
[364683185,1749198645565,-500.0,0.00030164,7]
[364683186,1749198645574,-500.0,0.00030164,7]
[364683187,1749198645584,-679.13,0.00030164,7]
[364683188,1749198645593,-480.0,0.00030164,7]
[364683189,1749198645603,-480.0,0.00030164,7]
[364683190,1749198645613,-480.0,0.00030164,7]
[364683191,1749198645623,-480.0,0.00030164,7]
[364683192,1749198645633,-480.0,0.00030164,7]
[364683193,1749198645643,-480.0,0.00030164,7]
[364683194,1749198645652,-480.0,0.00030164,7]
[364683195,1749198645662,-191.602931,0.00030164,7]
[364683196,1749198645671,-480.0,0.00030164,7]
[364683197,1749198645680,-480.0,0.00030164,7]
[364683198,1749198645690,-480.0,0.00030164,7]
[364683199,1749198645699,-501.78,0.00030164,7]
[364683200,1749198645710,-505.99725992,0.00030164,7]
[364683201,1749198645719,-480.0,0.00030164,7]
[364683202,1749198645730,-160.261403,0.00030164,7]
[364683203,1749198645739,-480.0,0.00030164,7]
[364683204,1749198645750,-420.0,0.00030164,7]
[364683205,1749198645759,-480.0,0.00030164,7]
[364683206,1749198645768,-493.81184276,0.00030164,7]
[364683207,1749198645778,-460.0,0.00030164,7]
[364683208,1749198645788,-507.47543912,0.00030164,7]
[364683209,1749198645798,-480.0,0.00030164,7]
[364683210,1749198645809,-480.0,0.00030164,7]
[364683211,1749198645819,-480.0,0.00030164,7]
[364683212,1749198645829,-480.0,0.00030164,7]
[364683213,1749198645838,-480.0,0.00030164,7]
[364683214,1749198645848,-480.0,0.00030164,7]
[364683215,1749198645866,-480.0,0.00030164,7]
[364683216,1749198645877,-480.0,0.00030164,7]
[364683217,1749198645886,-480.0,0.00030164,7]
[364683218,1749198645896,-1187.91,0.00030164,7]